fUSD/lending_fUSD_20240107
["ID","MTS","AMOUNT","RATE_DAILY","PERIOD"]
[310630280,1704593454218,-500.0,0.00022891,2]
[310630281,1704593454227,-500.0,0.00022891,2]
[310630282,1704593454236,-377.36488198,0.00022891,2]
[310630283,1704593454245,-1703.55,0.00022891,2]
[310630284,1704593454254,-1703.55,0.00022891,2]
[310630285,1704593454263,-967.16,0.00022891,2]
[310630286,1704593454272,-1181.18,0.00022891,2]
[310630287,1704593454281,-1181.18,0.00022891,2]
[310630288,1704593454291,-500.0,0.00022891,2]
[310630289,1704593454301,-500.0,0.00022891,2]
[310630290,1704593454310,-2126.67,0.00022891,2]
[310630291,1704593454319,-2126.67,0.00022891,2]
[310630292,1704593454329,-500.0,0.00022891,2]
[310630293,1704593454339,-500.0,0.00022891,2]
[310630294,1704593454348,-500.0,0.00022891,2]
[310630295,1704593454357,-500.0,0.00022891,2]
[310630296,1704593454366,-500.0,0.00022891,2]
[310630297,1704593454375,-500.0,0.00022891,2]
[310630298,1704593454385,-500.0,0.00022891,2]
[310630299,1704593454397,-500.0,0.00022891,2]
[310630300,1704593454406,-500.0,0.00022891,2]
[310630301,1704593454417,-500.0,0.00022891,2]
[310630302,1704593454427,-500.0,0.00022891,2]
[310630303,1704593454438,-20615.8,0.00022891,2]
[310630304,1704593454447,-500.0,0.00022891,2]
[310630305,1704593454457,-920.27,0.00022891,2]
[310630306,1704593454466,-500.0,0.00022891,2]
[310630307,1704593454475,-598.81640952,0.00022891,2]
[310630308,1704593454487,-500.0,0.00022892,2]
[310630309,1704593454496,-500.0,0.00022892,2]
[310630310,1704593454505,-500.0,0.00022892,2]
[310630311,1704593454515,-500.0,0.00022892,2]
[310630312,1704593454525,-500.0,0.00022892,2]
[310630313,1704593454535,-500.0,0.00022892,2]
[310630314,1704593454546,-500.0,0.00022892,2]
[310630315,1704593454556,-622.96603855,0.00022892,2]
[310630316,1704593454565,-500.0,0.00022892,2]
[310630317,1704593454574,-2208.02,0.00022892,2]
[310630318,1704593454583,-500.0,0.00022892,2]
[310630319,1704593454593,-1703.55,0.00022892,2]
[310630320,1704593454603,-1181.18,0.00022892,2]
[310630321,1704593454613,-500.0,0.00022892,2]
[310630322,1704593454622,-2126.67,0.00022892,2]
[310630323,1704593454631,-500.0,0.00022892,2]
[310630324,1704593454641,-500.0,0.00022892,2]
[310630325,1704593454650,-500.0,0.00022892,2]
[310630326,1704593454660,-189.58849849,0.00022892,2]
[310630327,1704593454669,-500.0,0.00022892,2]
[310630328,1704593454679,-500.0,0.00022893,2]
[310630329,1704593454688,-500.0,0.00022893,2]
[310630330,1704593454697,-500.0,0.00022893,2]
[310630331,1704593454707,-500.0,0.00022893,2]
[310630332,1704593454716,-500.0,0.00022893,2]
[310630333,1704593454725,-562.68,0.00022893,2]
[310630334,1704593454735,-500.0,0.00022893,2]
[310630335,1704593454744,-500.0,0.00022893,2]
[310630336,1704593454754,-500.0,0.00022893,2]
[310630337,1704593454763,-500.0,0.00022893,2]
[310630338,1704593454772,-459.8699621,0.00022893,2]
[310630339,1704593454781,-500.0,0.00022893,2]
[310630340,1704593454791,-500.0,0.00022893,2]
[310630341,1704593454802,-541.74535755,0.00022893,2]
[310630342,1704593454812,-500.0,0.00022893,2]
[310630343,1704593454822,-640.13,0.00022893,2]
[310630344,1704593454832,-500.0,0.00022893,2]
[310630345,1704593454841,-500.0,0.00022893,2]
[310630346,1704593454850,-500.0,0.00022893,2]
[310630347,1704593454862,-500.0,0.00022893,2]
[310630348,1704593454871,-500.0,0.00022893,2]
[310630349,1704593454882,-495.30075549,0.00022893,2]
[310630350,1704593454891,-623.71,0.00022893,2]
[310630351,1704593454902,-500.0,0.00022893,2]
[310630352,1704593454912,-155.38635682,0.00022897,2]
[310630353,1704593454923,-500.0,0.00022897,2]
[310630354,1704593454933,-500.0,0.00022897,2]
[310630355,1704593454943,-500.0,0.00022897,2]
[310630356,1704593454952,-500.0,0.00022897,2]
[310630357,1704593454964,-500.0,0.00022897,2]
[310630358,1704593454974,-434.26,0.00022897,2]
[310630359,1704593454983,-499.5680421,0.00022897,2]
[310630360,1704593454993,-757.71,0.00022897,2]
[310630361,1704593455003,-419.97803058,0.00022897,2]
[310630362,1704593455016,-500.0,0.00022897,2]
[310630363,1704593455031,-500.0,0.00022897,2]
[310630364,1704593455042,-500.0,0.00022897,2]
[310630365,1704593455052,-238.64964244,0.00022897,2]
[310630366,1704593455063,-417.80970041,0.00022898,2]
[310630367,1704593455073,-500.0,0.00022898,2]
[310630368,1704593455083,-508.77,0.00022898,2]
[310630369,1704593455093,-500.0,0.00022898,2]
[310630370,1704593455104,-500.0,0.00022898,2]
[310630371,1704593455115,-500.0,0.00022898,2]
[310630372,1704593455125,-500.0,0.00022898,2]
[310630373,1704593455135,-500.0,0.00022898,2]
[310630374,1704593455145,-500.0,0.00022898,2]
[310630375,1704593455154,-500.0,0.00022898,2]
[310630376,1704593455163,-561.62250157,0.00022898,2]
[310630377,1704593455173,-500.0,0.00022898,2]
[310630378,1704593455182,-500.0,0.00022898,2]
[310630379,1704593455192,-500.0,0.00022898,2]
[310630380,1704593455201,-500.0,0.00022898,2]
[310630381,1704593455211,-288.90053895,0.00022898,2]
[310630382,1704593455220,-500.0,0.00022898,2]
[310630383,1704593455230,-500.0,0.00022898,2]
[310630384,1704593455239,-500.0,0.00022898,2]
[310630385,1704593455249,-500.0,0.00022898,2]
[310630386,1704593455258,-500.0,0.00022898,2]
[310630387,1704593455268,-500.0,0.00022898,2]
[310630388,1704593455277,-500.0,0.00022898,2]
[310630389,1704593455287,-500.0,0.00022898,2]
[310630390,1704593455296,-500.0,0.00022898,2]
[310630391,1704593455305,-519.84,0.00022899,2]
[310630392,1704593455315,-500.0,0.00022899,2]
[310630393,1704593455324,-500.0,0.00022899,2]
[310630394,1704593455333,-500.0,0.00022899,2]
[310630395,1704593455342,-544.85,0.00022899,2]
[310630396,1704593455352,-500.0,0.00022899,2]
[310630397,1704593455361,-607.09,0.00022899,2]
[310630398,1704593455370,-6385.87,0.00022899,2]
[310630399,1704593455380,-761.98,0.00022899,2]
[310630400,1704593455390,-500.0,0.00022899,2]
[310630401,1704593455399,-1169.48,0.00022899,2]
[310630402,1704593455409,-500.0,0.00022899,2]
[310630403,1704593455419,-500.0,0.00022899,2]
[310630404,1704593455429,-946.82,0.00022899,2]
[310630405,1704593455438,-618.74,0.00022899,2]
[310630406,1704593455448,-500.0,0.00022899,2]
[310630407,1704593455458,-4008.9,0.00022899,2]
[310630408,1704593455467,-30213.83,0.00022899,2]
[310630409,1704593455476,-638.87231604,0.00022899,2]
[310630410,1704593455486,-509.18,0.00022899,2]
[310630411,1704593455495,-500.0,0.00022899,2]
[310630412,1704593455505,-500.0,0.00022899,2]
[310630413,1704593455514,-151.3,0.000229,2]
[310630414,1704593455524,-136528.78230255,0.000229,2]
[310630415,1704593455534,-157.18,0.0002293,2]
[310630416,1704593455545,-967.16,0.00022988,2]
[310630417,1704593455555,-500.0,0.00022988,2]
[310630418,1704593455564,-500.0,0.00022988,2]
[310630419,1704593455574,-500.0,0.00022988,2]
[310630420,1704593455584,-20615.8,0.00022988,2]
[310630421,1704593455593,-920.27,0.00022988,2]
[310630422,1704593455602,-2208.02,0.00022989,2]
[310630423,1704593455612,-500.0,0.00022989,2]
[310630424,1704593455621,-1703.55,0.00022989,2]
[310630425,1704593455631,-1181.18,0.00022989,2]
[310630426,1704593455641,-500.0,0.00022989,2]
[310630427,1704593455651,-2126.67,0.00022989,2]
[310630428,1704593455660,-500.0,0.00022989,2]
[310630429,1704593455670,-500.0,0.00022989,2]
[310630430,1704593455680,-500.0,0.00022989,2]
[310630431,1704593455690,-500.0,0.00022989,2]
[310630432,1704593455699,-13196.07582767,0.0002299,2]
[310630433,1704593455709,-500.0,0.0002299,2]
[310630434,1704593455718,-500.0,0.0002299,2]
[310630435,1704593455727,-500.0,0.0002299,2]
[310630436,1704593455737,-500.0,0.0002299,2]
[310630437,1704593455746,-500.0,0.0002299,2]
[310630438,1704593455756,-500.0,0.0002299,2]
[310630439,1704593455764,-500.0,0.0002299,2]
[310630440,1704593455774,-295.40005194,0.0002299,2]
[310630441,1704593455783,-249.47166287,0.0002299,2]
[310630442,1704593455795,-500.0,0.0002299,2]
[310630443,1704593455806,-500.0,0.0002299,2]
[310630444,1704593455815,-500.0,0.0002299,2]
[310630445,1704593455824,-500.0,0.0002299,2]
[310630446,1704593455833,-500.0,0.0002299,2]
[310630447,1704593455843,-500.0,0.0002299,2]
[310630448,1704593455852,-500.0,0.0002299,2]
[310630449,1704593455862,-500.0,0.0002299,2]
[310630450,1704593455871,-398.6848377,0.0002299,2]
[310630451,1704593455881,-500.0,0.0002299,2]
[310630452,1704593455890,-500.0,0.0002299,2]
[310630453,1704593455900,-500.0,0.0002299,2]
[310630454,1704593455909,-500.0,0.0002299,2]
[310630455,1704593455919,-500.0,0.0002299,2]
[310630456,1704593455928,-500.0,0.0002299,2]
[310630457,1704593455938,-500.0,0.0002299,2]
[310630458,1704593455947,-647.64384508,0.0002299,2]
[310630459,1704593455956,-500.0,0.0002299,2]
[310630460,1704593455966,-500.0,0.0002299,2]
[310630461,1704593455975,-500.0,0.0002299,2]
[310630462,1704593455984,-500.0,0.0002299,2]
[310630463,1704593455993,-500.0,0.0002299,2]
[310630464,1704593456003,-500.0,0.0002299,2]
[310630465,1704593456013,-500.0,0.0002299,2]
[310630466,1704593456024,-500.0,0.0002299,2]
[310630467,1704593456034,-500.0,0.0002299,2]
[310630468,1704593456044,-500.0,0.0002299,2]
[310630469,1704593456054,-500.0,0.0002299,2]
[310630470,1704593456065,-500.0,0.0002299,2]
[310630471,1704593456075,-514.25722407,0.0002299,2]
[310630472,1704593456085,-500.0,0.0002299,2]
[310630473,1704593456096,-500.0,0.0002299,2]
[310630474,1704593456108,-500.0,0.0002299,2]
[310630475,1704593456118,-500.0,0.0002299,2]
[310630476,1704593456129,-500.0,0.0002299,2]
[310630477,1704593456139,-500.0,0.0002299,2]
[310630478,1704593456148,-500.0,0.0002299,2]
[310630479,1704593456159,-500.0,0.0002299,2]
[310630480,1704593456169,-500.0,0.0002299,2]
[310630481,1704593456180,-500.0,0.0002299,2]
[310630482,1704593456189,-500.0,0.0002299,2]
[310630483,1704593456199,-500.0,0.0002299,2]
[310630484,1704593456209,-500.0,0.0002299,2]
[310630485,1704593456219,-500.0,0.0002299,2]
[310630486,1704593456228,-500.0,0.0002299,2]
[310630487,1704593456238,-500.0,0.0002299,2]
[310630488,1704593456247,-500.0,0.0002299,2]
[310630489,1704593456257,-500.0,0.0002299,2]
[310630490,1704593456267,-500.0,0.0002299,2]
[310630491,1704593456277,-500.0,0.0002299,2]
[310630492,1704593456286,-500.0,0.0002299,2]
[310630493,1704593456296,-539.59703033,0.0002299,2]
[310630494,1704593456306,-500.0,0.0002299,2]
[310630495,1704593456315,-500.0,0.0002299,2]
[310630496,1704593456325,-500.0,0.0002299,2]
[310630497,1704593456335,-500.0,0.0002299,2]
[310630498,1704593456507,-602.48211313,0.0002299,2]
[310630499,1704593456516,-500.0,0.0002299,2]
[310630500,1704593456526,-500.0,0.0002299,2]
[310630501,1704593456535,-500.0,0.0002299,2]
[310630502,1704593456545,-500.0,0.0002299,2]
[310630503,1704593456554,-500.0,0.0002299,2]
[310630504,1704593456564,-839.85,0.0002299,2]
[310630505,1704593456573,-520.5,0.0002299,2]
[310630506,1704593456583,-1273.91,0.0002299,2]
[310630507,1704593456592,-500.0,0.0002299,2]
[310630508,1704593456602,-1442.52,0.0002299,2]
[310630509,1704593456611,-1774.31,0.0002299,2]
[310630510,1704593456620,-573.83915287,0.0002299,2]
[310630511,1704593456630,-500.0,0.0002299,2]
[310630512,1704593456639,-500.0,0.0002299,2]
[310630513,1704593456648,-500.0,0.0002299,2]
[310630514,1704593456657,-500.0,0.0002299,2]
[310630515,1704593456667,-500.0,0.0002299,2]
[310630516,1704593456676,-540.89,0.0002299,2]
[310630517,1704593456685,-341.79717174,0.0002299,2]
[310630518,1704593456695,-1566.01,0.0002299,2]
[310630519,1704593456705,-745.33,0.0002299,2]
[310630520,1704593456714,-884.62,0.0002299,2]
[310630521,1704593456723,-500.0,0.0002299,2]
[310630522,1704593456732,-500.0,0.0002299,2]
[310630523,1704593456741,-500.0,0.0002299,2]
[310630524,1704593456750,-500.0,0.0002299,2]
[310630525,1704593456759,-3453.09,0.0002299,2]
[310630526,1704593456769,-579.15553399,0.0002299,2]
[310630527,1704593456778,-500.0,0.0002299,2]
[310630528,1704593456788,-500.0,0.0002299,2]
[310630529,1704593456797,-644.56,0.0002299,2]
[310630530,1704593456806,-523.73753686,0.0002299,2]
[310630531,1704593456815,-203.77442748,0.0002299,2]
[310630532,1704593456824,-500.0,0.0002299,2]
[310630533,1704593456833,-500.0,0.0002299,2]
[310630534,1704593456842,-500.0,0.0002299,2]
[310630535,1704593456851,-757.71,0.0002299,2]
[310630536,1704593456861,-757.71,0.0002299,2]
[310630537,1704593456870,-661.99,0.0002299,2]
[310630538,1704593456880,-500.0,0.0002299,2]
[310630539,1704593456889,-345.83029139,0.0002299,2]
[310630540,1704593456899,-500.0,0.0002299,2]
[310630541,1704593456909,-159.39484191,0.0002299,2]
[310630542,1704593456918,-545.14210392,0.0002299,2]
[310630543,1704593456928,-500.0,0.0002299,2]
[310630544,1704593456937,-514.41576545,0.0002299,2]
[310630545,1704593456946,-500.0,0.0002299,2]
[310630546,1704593456956,-1169.48,0.0002299,2]
[310630547,1704593456966,-500.0,0.0002299,2]
[310630548,1704593456975,-500.0,0.0002299,2]
[310630549,1704593456984,-946.82,0.0002299,2]
[310630550,1704593456994,-500.0,0.0002299,2]
[310630551,1704593457004,-831.13,0.0002299,2]
[310630552,1704593457014,-618.74,0.0002299,2]
[310630553,1704593457028,-564.57113822,0.0002299,2]
[310630554,1704593457038,-500.0,0.0002299,2]
[310630555,1704593457048,-4008.9,0.0002299,2]
[310630556,1704593457057,-500.0,0.0002299,2]
[310630557,1704593457067,-500.0,0.0002299,2]
[310630558,1704593457077,-12392.43702062,0.0002299,2]
[310630559,1704593457402,-17821.39297938,0.0002299,2]
[310630560,1704593457411,-1224.89,0.0002299,2]
[310630561,1704593457421,-509.18,0.0002299,2]
[310630562,1704593457430,-500.0,0.0002299,2]
[310630563,1704593457440,-268.03406323,0.0002299,2]
[310630564,1704593457449,-500.0,0.0002299,2]
[310630565,1704593457458,-500.0,0.00022991,2]
[310630566,1704593457468,-500.0,0.00022991,2]
[310630567,1704593457477,-346.39633677,0.00022991,2]
[310630568,1704593457486,-500.0,0.00022991,2]
[310630569,1704593457495,-545.33101322,0.00022991,2]
[310630570,1704593457505,-500.0,0.00022991,2]
[310630571,1704593457515,-500.0,0.00022991,2]
[310630572,1704593457524,-500.0,0.00022991,2]
[310630573,1704593457534,-500.0,0.00022991,2]
[310630574,1704593457545,-519.84,0.00022991,2]
[310630575,1704593457554,-519.84,0.00022991,2]
[310630576,1704593457564,-2208.02,0.00022991,2]
[310630577,1704593457574,-500.0,0.00022991,2]
[310630578,1704593457583,-177.02629363,0.00022991,2]
[310630579,1704593457592,-500.0,0.00022991,2]
[310630580,1704593457601,-500.0,0.00022991,2]
[310630581,1704593457611,-500.0,0.00022991,2]
[310630582,1704593457620,-500.0,0.00022991,2]
[310630583,1704593457631,-636.79,0.00022991,2]
[310630584,1704593457641,-544.85,0.00022991,2]
[310630585,1704593457650,-544.85,0.00022991,2]
[310630586,1704593457661,-278.4705262,0.00022991,2]
[310630587,1704593457672,-1703.55,0.00022991,2]
[310630588,1704593457681,-607.09,0.00022991,2]
[310630589,1704593457690,-607.09,0.00022991,2]
[310630590,1704593457699,-967.16,0.00022991,2]
[310630591,1704593457710,-1181.18,0.00022991,2]
[310630592,1704593457722,-6385.87,0.00022991,2]
[310630593,1704593457733,-6385.87,0.00022991,2]
[310630594,1704593457743,-500.0,0.00022991,2]
[310630595,1704593457753,-2126.67,0.00022991,2]
[310630596,1704593457763,-757.71,0.00022991,2]
[310630597,1704593457773,-500.0,0.00022991,2]
[310630598,1704593457783,-500.0,0.00022991,2]
[310630599,1704593457795,-761.98,0.00022991,2]
[310630600,1704593457804,-761.98,0.00022991,2]
[310630601,1704593457814,-500.0,0.00022991,2]
[310630602,1704593457823,-507.55707935,0.00022991,2]
[310630603,1704593457832,-240.48391442,0.00022991,2]
[310630604,1704593457842,-1169.48,0.00022991,2]
[310630605,1704593457851,-500.0,0.00022991,2]
[310630606,1704593457861,-500.0,0.00022991,2]
[310630607,1704593457870,-500.0,0.00022991,2]
[310630608,1704593457880,-500.0,0.00022991,2]
[310630609,1704593457890,-500.0,0.00022991,2]
[310630610,1704593457903,-500.0,0.00022991,2]
[310630611,1704593457913,-946.82,0.00022991,2]
[310630612,1704593457922,-481.7666314,0.00022991,2]
[310630613,1704593457932,-500.0,0.00022991,2]
[310630614,1704593457941,-618.74,0.00022991,2]
[310630615,1704593457950,-500.0,0.00022991,2]
[310630616,1704593457960,-500.0,0.00022991,2]
[310630617,1704593457969,-4008.9,0.00022991,2]
[310630618,1704593457978,-20615.8,0.00022991,2]
[310630619,1704593457987,-30213.83,0.00022991,2]
[310630620,1704593457996,-920.27,0.00022991,2]
[310630621,1704593458005,-500.0,0.00022991,2]
[310630622,1704593458015,-500.0,0.00022991,2]
[310630623,1704593458028,-509.18,0.00022991,2]
[310630624,1704593458038,-500.0,0.00022991,2]
[310630625,1704593458047,-500.0,0.00022991,2]
[310630626,1704593458056,-526.91370281,0.00022991,2]
[310630627,1704593458068,-2797.07583121,0.00022991,2]
[310630628,1704593458077,-551.67613433,0.00022991,2]
[310630629,1704593458088,-2150.35390188,0.00022991,2]
[310630630,1704593458097,-21821.91075143,0.00022991,2]
[310630631,1704593458106,-356.44910772,0.00022991,2]
[310630632,1704593458116,-265.13209175,0.00022991,2]
[310630633,1704593458125,-536.19953173,0.00022991,2]
[310630634,1704593458134,-155.83372319,0.00022991,2]
[310630635,1704593458143,-3138.18877054,0.00022991,2]
[310630636,1704593458152,-159.72459413,0.00022991,2]
[310630637,1704593458161,-150.01,0.00022992,2]
[310630638,1704593458170,-3288.57428281,0.00022992,2]
[310630639,1704593458180,-633.77236382,0.00022992,2]
[310630640,1704593458189,-500.0,0.00022992,2]
[310630641,1704593458198,-500.0,0.00022992,2]
[310630642,1704593458207,-500.0,0.00022992,2]
[310630643,1704593458216,-500.0,0.00022992,2]
[310630644,1704593458225,-500.0,0.00022992,2]
[310630645,1704593458235,-500.0,0.00022992,2]
[310630646,1704593458244,-500.0,0.00022992,2]
[310630647,1704593458252,-500.0,0.00022992,2]
[310630648,1704593458262,-534.93481668,0.00022992,2]
[310630649,1704593458271,-500.0,0.00022992,2]
[310630650,1704593458280,-500.0,0.00022992,2]
[310630651,1704593458290,-500.0,0.00022992,2]
[310630652,1704593458299,-535.52491271,0.00022992,2]
[310630653,1704593458309,-500.0,0.00022992,2]
[310630654,1704593458318,-181.97049567,0.00022992,2]
[310630655,1704593458327,-172.71741738,0.00022992,2]
[310630656,1704593458336,-500.0,0.00022992,2]
[310630657,1704593458345,-500.0,0.00022992,2]
[310630658,1704593458355,-331.74363637,0.00022992,2]
[310630659,1704593458364,-500.0,0.00022992,2]
[310630660,1704593458373,-500.0,0.00022992,2]
[310630661,1704593458383,-514.53726143,0.00022992,2]
[310630662,1704593458392,-500.0,0.00022992,2]
[310630663,1704593458402,-500.0,0.00022992,2]
[310630664,1704593458411,-263.29320954,0.00022992,2]
[310630665,1704593458421,-500.0,0.00022992,2]
[310630666,1704593458430,-365.44112892,0.00022992,2]
[310630667,1704593458439,-500.0,0.00022992,2]
[310630668,1704593458448,-500.0,0.00022992,2]
[310630669,1704593458458,-500.0,0.00022992,2]
[310630670,1704593458467,-500.0,0.00022992,2]
[310630671,1704593458477,-500.0,0.00022992,2]
[310630672,1704593458486,-604.30577351,0.00022992,2]
[310630673,1704593458496,-500.0,0.00022992,2]
[310630674,1704593458505,-500.0,0.00022992,2]
[310630675,1704593458514,-500.0,0.00022992,2]
[310630676,1704593458524,-434.77529268,0.00022992,2]
[310630677,1704593458534,-500.0,0.00022992,2]
[310630678,1704593458544,-500.0,0.00022992,2]
[310630679,1704593458555,-500.0,0.00022992,2]
[310630680,1704593458565,-500.0,0.00022992,2]
[310630681,1704593458576,-500.0,0.00022992,2]
[310630682,1704593458585,-500.0,0.00022992,2]
[310630683,1704593458596,-500.0,0.00022992,2]
[310630684,1704593458606,-500.0,0.00022992,2]
[310630685,1704593458615,-500.0,0.00022992,2]
[310630686,1704593458628,-594.47811763,0.00022992,2]
[310630687,1704593458639,-500.0,0.00022992,2]
[310630688,1704593458649,-500.0,0.00022992,2]
[310630689,1704593458713,-500.0,0.00022992,2]
[310630690,1704593458723,-189.48431044,0.00022992,2]
[310630691,1704593458734,-500.0,0.00022992,2]
[310630692,1704593458744,-500.0,0.00022992,2]
[310630693,1704593458754,-500.0,0.00022992,2]
[310630694,1704593458763,-500.0,0.00022992,2]
[310630695,1704593458774,-500.0,0.00022992,2]
[310630696,1704593458783,-500.0,0.00022992,2]
[310630697,1704593458796,-500.0,0.00022992,2]
[310630698,1704593458804,-500.0,0.00022992,2]
[310630699,1704593458814,-500.0,0.00022992,2]
[310630700,1704593458823,-500.0,0.00022992,2]
[310630701,1704593458832,-500.0,0.00022992,2]
[310630702,1704593458842,-500.0,0.00022992,2]
[310630703,1704593458852,-500.0,0.00022992,2]
[310630704,1704593458861,-500.0,0.00022992,2]
[310630705,1704593458870,-500.0,0.00022992,2]
[310630706,1704593458879,-500.0,0.00022992,2]
[310630707,1704593458889,-500.0,0.00022992,2]
[310630708,1704593458899,-500.0,0.00022992,2]
[310630709,1704593458908,-516.12408535,0.00022992,2]
[310630710,1704593458917,-500.0,0.00022992,2]
[310630711,1704593458926,-500.0,0.00022992,2]
[310630712,1704593458935,-500.0,0.00022992,2]
[310630713,1704593458944,-500.0,0.00022992,2]
[310630714,1704593458955,-500.0,0.00022992,2]
[310630715,1704593458964,-500.0,0.00022992,2]
[310630716,1704593458974,-500.0,0.00022992,2]
[310630717,1704593458983,-500.0,0.00022992,2]
[310630718,1704593458991,-500.0,0.00022992,2]
[310630719,1704593459001,-500.0,0.00022992,2]
[310630720,1704593459010,-500.0,0.00022992,2]
[310630721,1704593459021,-500.0,0.00022992,2]
[310630722,1704593459031,-500.0,0.00022992,2]
[310630723,1704593459040,-500.0,0.00022992,2]
[310630724,1704593459049,-500.0,0.00022992,2]
[310630725,1704593459058,-500.0,0.00022992,2]
[310630726,1704593459067,-500.0,0.00022992,2]
[310630727,1704593459076,-500.0,0.00022992,2]
[310630728,1704593459085,-500.0,0.00022992,2]
[310630729,1704593459095,-500.0,0.00022992,2]
[310630730,1704593459103,-500.0,0.00022992,2]
[310630731,1704593459113,-500.0,0.00022992,2]
[310630732,1704593459122,-500.0,0.00022992,2]
[310630733,1704593459131,-500.0,0.00022992,2]
[310630734,1704593459141,-500.0,0.00022992,2]
[310630735,1704593459150,-500.0,0.00022992,2]
[310630736,1704593459159,-500.0,0.00022992,2]
[310630737,1704593459169,-500.0,0.00022992,2]
[310630738,1704593459178,-572.74367044,0.00022992,2]
[310630739,1704593459187,-500.0,0.00022992,2]
[310630740,1704593459195,-500.0,0.00022992,2]
[310630741,1704593459204,-500.0,0.00022992,2]
[310630742,1704593459213,-500.0,0.00022992,2]
[310630743,1704593459222,-500.0,0.00022992,2]
[310630744,1704593459231,-500.0,0.00022992,2]
[310630745,1704593459240,-500.0,0.00022992,2]
[310630746,1704593459249,-500.0,0.00022992,2]
[310630747,1704593459258,-500.0,0.00022992,2]
[310630748,1704593459267,-500.0,0.00022992,2]
[310630749,1704593459275,-500.0,0.00022992,2]
[310630750,1704593459284,-500.0,0.00022992,2]
[310630751,1704593459294,-500.0,0.00022992,2]
[310630752,1704593459302,-500.0,0.00022992,2]
[310630753,1704593459312,-500.0,0.00022992,2]
[310630754,1704593459320,-500.0,0.00022992,2]
[310630755,1704593459329,-500.0,0.00022992,2]
[310630756,1704593459338,-500.0,0.00022992,2]
[310630757,1704593459346,-500.0,0.00022992,2]
[310630758,1704593459355,-500.0,0.00022992,2]
[310630759,1704593459364,-500.0,0.00022992,2]
[310630760,1704593459373,-500.0,0.00022992,2]
[310630761,1704593459381,-500.0,0.00022992,2]
[310630762,1704593459390,-500.0,0.00022992,2]
[310630763,1704593459399,-500.0,0.00022992,2]
[310630764,1704593459409,-500.0,0.00022992,2]
[310630765,1704593459418,-500.0,0.00022992,2]
[310630766,1704593459427,-168.74780481,0.00022992,2]
[310630767,1704593459437,-500.0,0.00022992,2]
[310630768,1704593459449,-500.0,0.00022992,2]
[310630769,1704593459460,-500.0,0.00022992,2]
[310630770,1704593459469,-500.0,0.00022992,2]
[310630771,1704593459479,-166.01312424,0.00022992,2]
[310630772,1704593459488,-548.13707162,0.00022992,2]
[310630773,1704593459497,-448.38942356,0.00022992,2]
[310630774,1704593459507,-839.85,0.00022992,2]
[310630775,1704593459516,-839.85,0.00022992,2]
[310630776,1704593459525,-839.85,0.00022992,2]
[310630777,1704593459534,-1273.91,0.00022992,2]
[310630778,1704593459544,-1273.91,0.00022992,2]
[310630779,1704593459554,-1273.91,0.00022992,2]